{"text_format":"1","workbook":"xlsx","n_sheets":2,"sheets":["フォーマット","記入方法"],"not_rendered":{"charts":0,"images":3,"macros":1,"external_links":0,"defined_names":1,"comments":1,"pivot_tables":0},"unopened":[],"bounds":{"document_bytes":16777216,"sheet_cells":100000,"rows_first":2000,"rows_last":500,"rows_between":2000,"halvings":0,"cell_chars":16384,"cell_head_chars":4096},"cells_cut":0,"cells_raw":0,"read":"whole","date_system":"1900"}

{"sheet":"フォーマット","index":0,"n_rows":43,"n_cols":920,"rows_kept":43,"cut":false,"hidden":false,"merged":[[6,13,6,14],[39,15,41,23],[40,0,40,14],[7,0,27,0],[7,1,10,1],[11,1,14,1],[15,1,19,1],[20,1,23,1],[24,1,27,1],[28,0,38,0],[28,1,32,1],[33,1,36,1],[37,1,38,1],[39,9,39,11],[2,0,2,12],[2,13,3,14],[2,15,3,23],[3,0,3,12],[5,0,6,1],[5,2,6,2],[5,3,6,3],[5,4,6,4],[5,5,6,5],[5,6,6,6],[5,7,6,7],[5,8,6,8],[5,9,6,10],[5,11,6,12],[5,15,5,21],[5,22,6,23],[5,29,6,29],[5,24,6,24],[5,25,6,25],[5,26,6,26],[5,27,6,27],[5,28,6,28]]}
[]
[null,"(様式２）"]
["2025年度 教員免許取得希望者介護等体験",null,null,null,null,null,null,null,null,null,null,null,null,"施設名"]
["受入れ連絡票 ― 日程表"]
[null,null,"この表には何も記入しないでください",null,null,null,null,null,null,null,null,"受入れ可能日数が5または7日の週をチェックしてください"]
[null,null,"月","火","水","木","金","土","日","受入れ\n可能週\n（週番号）",null,"受入れ\n可能人数",null,"男","女","受入れ可能な曜日を\n塗りつぶしてください",null,null,null,null,null,null,"受入れ可能\n日数\n（５または７）",null,"週番号","受入れ可能","施設番号","人数","男","女"]
[null,null,null,null,null,null,null,null,null,null,null,null,null,"不問の場合\n空欄",null,"月","火","水","木","金","土","日",null,null,null,null,null,null,null,null,"月","火","水","木","金","土","日"]
["２０２５年","８月",4,{"$f":"C8+1","v":5},6,7,8,9,10,1,null,null,"名",null,null,null,null,null,null,null,null,null,null,"日",{"$f":"J8","v":1},false,{"$f":"LEFT(MID(CELL(\"filename\"),FIND(\"[\",CELL(\"filename\"))+1,FIND(\"]\",CELL(\"filename\"))-FIND(\"[\",CELL(\"filename\"))-1),9)","v":"受入日程表（202"},{"$f":"L8","v":0},{"$f":"N8","v":0},{"$f":"O8","v":0},false,false,false,false,false,false,false,{"$f":"W8","v":0}]
[null,null,{"$f":"C8+7","v":11},12,13,14,15,16,17,2,null,null,"名",null,null,null,null,null,null,null,null,null,null,"日",{"$f":"J9","v":2},false,{"$f":"LEFT(MID(CELL(\"filename\"),FIND(\"[\",CELL(\"filename\"))+1,FIND(\"]\",CELL(\"filename\"))-FIND(\"[\",CELL(\"filename\"))-1),9)","v":"受入日程表（202"},{"$f":"L9","v":0},{"$f":"N9","v":0},0,false,false,false,false,false,false,false,0]
[null,null,18,19,20,21,22,23,24,3,null,null,"名",null,null,null,null,null,null,null,null,null,null,"日",3,false,"受入日程表（202",0,0,0,false,false,false,false,false,false,false,0]
[null,null,25,26,27,28,29,30,"31",4,null,null,"名",null,null,null,null,null,null,null,null,null,null,"日",4,false,"受入日程表（202",0,0,0,false,false,false,false,false,false,false,0]
[null,"９月",1,{"$f":"C12+1","v":2},3,4,5,{"$f":"G12+1","v":6},{"$f":"H12+1","v":7},5,null,null,"名",null,null,null,null,null,null,null,null,null,null,"日",5,false,"受入日程表（202",0,0,0,false,false,false,false,false,false,false,0]
[null,null,{"$f":"C12+7","v":8},9,10,11,12,13,14,6,null,null,"名",null,null,null,null,null,null,null,null,null,null,"日",6,false,"受入日程表（202",0,0,0,false,false,false,false,false,false,false,0]
[null,null,15,16,17,18,19,20,21,7,null,null,"名",null,null,null,null,null,null,null,null,null,null,"日",7,false,"受入日程表（202",0,0,0,false,false,false,false,false,false,false,0]
[null,null,22,23,24,25,26,27,28,8,null,null,"名",null,null,null,null,null,null,null,null,null,null,"日",8,false,"受入日程表（202",0,0,0,false,false,false,false,false,false,false,0]
[null,"10月","2023-09-29","2023-09-30",1,{"$f":"E16+1","v":2},3,{"$f":"G16+1","v":4},{"$f":"H16+1","v":5},9,null,null,"名",null,null,null,null,null,null,null,null,null,null,"日",9,false,"受入日程表（202",0,0,0,false,false,false,false,false,false,false,0]
[null,null,6,7,8,9,10,11,12,10,null,null,"名",null,null,null,null,null,null,null,null,null,null,"日",10,false,"受入日程表（202",0,0,0,false,false,false,false,false,false,false,0]
[null,null,13,14,15,16,17,18,19,11,null,null,"名",null,null,null,null,null,null,null,null,null,null,"日",11,false,"受入日程表（202",0,0,0,false,false,false,false,false,false,false,0]
[null,null,20,21,22,23,24,25,26,12,null,null,"名",null,null,null,null,null,null,null,null,null,null,"日",12,false,"受入日程表（202",0,0,0,false,false,false,false,false,false,false,0]
[null,null,27,28,29,30,"31","11/1","11/2",13,null,null,"名",null,null,null,null,null,null,null,null,null,null,"日",13,false,"受入日程表（202",0,0,0,false,false,false,false,false,false,false,0]
[null,"11月",3,{"$f":"C21+1","v":4},5,6,{"$f":"F21+1","v":7},{"$f":"G21+1","v":8},{"$f":"H21+1","v":9},14,null,null,"名",null,null,null,null,null,null,null,null,null,null,"日",14,false,"受入日程表（202",0,0,0,false,false,false,false,false,false,false,0]
[null,null,{"$f":"C21+7","v":10},11,12,13,14,15,16,15,null,null,"名",null,null,null,null,null,null,null,null,null,null,"日",15,false,"受入日程表（202",0,0,0,false,false,false,false,false,false,false,0]
[null,null,{"$f":"C22+7","v":17},{"$f":"D22+7","v":18},19,20,21,22,23,16,null,null,"名",null,null,null,null,null,null,null,null,null,null,"日",16,false,"受入日程表（202",0,0,0,false,false,false,false,false,false,false,0]
[null,null,{"$f":"C23+7","v":24},{"$f":"D23+7","v":25},26,27,28,29,"30",17,null,null,"名",null,null,null,null,null,null,null,null,null,null,"日",17,false,"受入日程表（202",0,0,0,false,false,false,false,false,false,false,0]
[null,"12月",1,{"$f":"C25+1","v":2},3,4,{"$f":"F25+1","v":5},{"$f":"G25+1","v":6},{"$f":"H25+1","v":7},18,null,null,"名",null,null,null,null,null,null,null,null,null,null,"日",18,false,"受入日程表（202",0,0,0,false,false,false,false,false,false,false,0]
[null,null,{"$f":"C25+7","v":8},9,10,11,12,13,14,19,null,null,"名",null,null,null,null,null,null,null,null,null,null,"日",19,false,"受入日程表（202",0,0,0,false,false,false,false,false,false,false,0]
[null,null,15,16,17,18,19,20,21,20,null,null,"名",null,null,null,null,null,null,null,null,null,null,"日",20,false,"受入日程表（202",0,0,0,false,false,false,false,false,false,false,0]
[null,null,22,23,24,25,26,27,28,21,null,null,"名",null,null,null,null,null,null,null,null,null,null,"日",21,false,"受入日程表（202",0,0,0,false,false,false,false,false,false,false,0]
["２０２６年","１\n月","2025-12-29","2025-12-30","2025-12-31",1,{"$f":"F29+1","v":2},{"$f":"G29+1","v":3},{"$f":"H29+1","v":4},22,null,null,"名",null,null,null,null,null,null,null,null,null,null,"日",22,false,"受入日程表（202",0,0,0,false,false,false,false,false,false,false,0]
[null,null,5,{"$f":"C30+1","v":6},7,8,9,10,11,23,null,null,"名",null,null,null,null,null,null,null,null,null,null,"日",23,false,"受入日程表（202",0,0,0,false,false,false,false,false,false,false,0,null,null,null,null,null,null,null,null,null,null,null,null,null,null,null,null,null,null,null,null,null,null,null,null,null,null,null,null,null,null,null,null,null,null,null,null,null,null,null,null,null,null,null,null,null,null,null,null,null,null,null,null,null,null,null,null,null,null,null,null,null,null,null,null,null,null,null,null,null,null,null,null,null,null,null,null,null,null,null,null,null,null,null,null,null,null,null,null,null,null,null,null,null,null,null,null,null,null,null,null,null,null,null,null,null,null,null,null,null,null,null,null,null,null,null,null,null,null,null,null,null,null,null,null,null,null,null,null,null,null,null,null,null,null,null,null,null,null,null,null,null,null,null,null,null,null,null,null,null,null,null,null,null,null,null,null,null,null,null,null,null,null,null,null,null,null,null,null,null,null,null,null,null,null,null,null,null,null,null,null,null,null,null,null,null,null,null,null,null,null,null,null,null,null,null,null,null,null,null,null,null,null,null,null,null,null,null,null,null,null,null,null,null,null,null,null,null,null,null,null,null,null,null,null,null,null,null,null,null,null,null,null,null,null,null,null,null,null,null,null,null,null,null,null,null,null,null,null,null,null,null,null,null,null,null,null,null,null,null,null,null,null,null,null,null,null,null,null,null,null,null,null,null,null,null,null,null,null,null,null,null,null,null,null,null,null,null,null,null,null,null,null,null,null,null,null,null,null,null,null,null,null,null,null,null,null,null,null,null,null,null,null,null,null,null,null,null,null,null,null,null,null,null,null,null,null,null,null,null,null,null,null,null,null,null,null,null,null,null,null,null,null,null,null,null,null,null,null,null,null,null,null,null,null,null,null,null,null,null,null,null,null,null,null,null,null,null,null,null,null,null,null,null,null,null,null,null,null,null,null,null,null,null,null,null,null,null,null,null,null,null,null,null,null,null,null,null,null,null,null,null,null,null,null,null,null,null,null,null,null,null,null,null,null,null,null,null,null,null,null,null,null,null,null,null,null,null,null,null,null,null,null,null,null,null,null,null,null,null,null,null,null,null,null,null,null,null,null,null,null,null,null,null,null,null,null,null,null,null,null,null,null,null,null,null,null,null,null,null,null,null,null,null,null,null,null,null,null,null,null,null,null,null,null,null,null,null,null,null,null,null,null,null,null,null,null,null,null,null,null,null,null,null,null,null,null,null,null,null,null,null,null,null,null,null,null,null,null,null,null,null,null,null,null,null,null,null,null,null,null,null,null,null,null,null,null,null,null,null,null,null,null,null,null,null,null,null,null,null,null,null,null,null,null,null,null,null,null,null,null,null,null,null,null,null,null,null,null,null,null,null,null,null,null,null,null,null,null,null,null,null,null,null,null,null,null,null,null,null,null,null,null,null,null,null,null,null,null,null,null,null,null,null,null,null,null,null,null,null,null,null,null,null,null,null,null,null,null,null,null,null,null,null,null,null,null,null,null,null,null,null,null,null,null,null,null,null,null,null,null,null,null,null,null,null,null,null,null,null,null,null,null,null,null,null,null,null,null,null,null,null,null,null,null,null,null,null,null,null,null,null,null,null,null,null,null,null,null,null,null,null,null,null,null,null,null,null,null,null,null,null,null,null,null,null,null,null,null,null,null,null,null,null,null,null,null,null,null,null,null,null,null,null,null,null,null,null,null,null,null,null,null,null,null,null,null,null,null,null,null,null,null,null,null,null,null,null,null,null,null,null,null,null,null,null,null,null,null,null,null,null,null,null,null,null,null,null,null,null,null,null,null,null,null,null,null,null,null,null,null,null,null,null,null,null,null,null,null,null,null,null,null,null,null,null,null,null,null,null,null,null,null,null,null,null,null,null,null,null,null,null,null,null,null,null,null,null,null,null,null,null,null,null,null,null,null,null,null,null,null,null,null,null,null,null,null,null,null,null,null,null,null,null,null,null,null,null,null,null,null,null,null,null,null,null,null,null,null,null,null,null,null,null,null,null,null,null,null,null,null,null,null,null,null,null,null,null,null,null,null,null,null,null,null,null,null,null,null,null,null,null,false]
[null,null,{"$f":"C30+7","v":12},13,14,15,16,17,18,24,null,null,"名",null,null,null,null,null,null,null,null,null,null,"日",24,false,"受入日程表（202",0,0,0,false,false,false,false,false,false,false,0,null,null,null,null,null,null,null,null,null,null,null,null,null,null,null,null,null,null,null,null,null,null,null,null,null,null,null,null,null,null,null,null,null,null,null,null,null,null,null,null,null,null,null,null,null,null,null,null,null,null,null,null,null,null,null,null,null,null,null,null,null,null,null,null,null,null,null,null,null,null,null,null,null,null,null,null,null,null,null,null,null,null,null,null,null,null,null,null,null,null,null,null,null,null,null,null,null,null,null,null,null,null,null,null,null,null,null,null,null,null,null,null,null,null,null,null,null,null,null,null,null,null,null,null,null,null,null,null,null,null,null,null,null,null,null,null,null,null,null,null,null,null,null,null,null,null,null,null,null,null,null,null,null,null,null,null,null,null,null,null,null,null,null,null,null,null,null,null,null,null,null,null,null,null,null,null,null,null,null,null,null,null,null,null,null,null,null,null,null,null,null,null,null,null,null,null,null,null,null,null,null,null,null,null,null,null,null,null,null,null,null,null,null,null,null,null,null,null,null,null,null,null,null,null,null,null,null,null,null,null,null,null,null,null,null,null,null,null,null,null,null,null,null,null,null,null,null,null,null,null,null,null,null,null,null,null,null,null,null,null,null,null,null,null,null,null,null,null,null,null,null,null,null,null,null,null,null,null,null,null,null,null,null,null,null,null,null,null,null,null,null,null,null,null,null,null,null,null,null,null,null,null,null,null,null,null,null,null,null,null,null,null,null,null,null,null,null,null,null,null,null,null,null,null,null,null,null,null,null,null,null,null,null,null,null,null,null,null,null,null,null,null,null,null,null,null,null,null,null,null,null,null,null,null,null,null,null,null,null,null,null,null,null,null,null,null,null,null,null,null,null,null,null,null,null,null,null,null,null,null,null,null,null,null,null,null,null,null,null,null,null,null,null,null,null,null,null,null,null,null,null,null,null,null,null,null,null,null,null,null,null,null,null,null,null,null,null,null,null,null,null,null,null,null,null,null,null,null,null,null,null,null,null,null,null,null,null,null,null,null,null,null,null,null,null,null,null,null,null,null,null,null,null,null,null,null,null,null,null,null,null,null,null,null,null,null,null,null,null,null,null,null,null,null,null,null,null,null,null,null,null,null,null,null,null,null,null,null,null,null,null,null,null,null,null,null,null,null,null,null,null,null,null,null,null,null,null,null,null,null,null,null,null,null,null,null,null,null,null,null,null,null,null,null,null,null,null,null,null,null,null,null,null,null,null,null,null,null,null,null,null,null,null,null,null,null,null,null,null,null,null,null,null,null,null,null,null,null,null,null,null,null,null,null,null,null,null,null,null,null,null,null,null,null,null,null,null,null,null,null,null,null,null,null,null,null,null,null,null,null,null,null,null,null,null,null,null,null,null,null,null,null,null,null,null,null,null,null,null,null,null,null,null,null,null,null,null,null,null,null,null,null,null,null,null,null,null,null,null,null,null,null,null,null,null,null,null,null,null,null,null,null,null,null,null,null,null,null,null,null,null,null,null,null,null,null,null,null,null,null,null,null,null,null,null,null,null,null,null,null,null,null,null,null,null,null,null,null,null,null,null,null,null,null,null,null,null,null,null,null,null,null,null,null,null,null,null,null,null,null,null,null,null,null,null,null,null,null,null,null,null,null,null,null,null,null,null,null,null,null,null,null,null,null,null,null,null,null,null,null,null,null,null,null,null,null,null,null,null,null,null,null,null,null,null,null,null,null,null,null,null,null,null,null,null,null,null,null,null,null,null,null,null,null,null,null,null,null,null,null,null,null,null,null,null,null,null,false,null,null,null,null,null,null,null,null,null,null,null,null,null,null,null,null,null,null,null,null,null,null,null,null,null,false]
[null,null,19,20,21,22,23,24,25,25,null,null,"名",null,null,null,null,null,null,null,null,null,null,"日",25,false,"受入日程表（202",0,0,0,false,false,false,false,false,false,false,0]
[null,null,26,27,28,29,30,"1/31","2/1",26,null,null,"名",null,null,null,null,null,null,null,null,null,null,"日",26,false,"受入日程表（202",0,0,0,false,false,false,false,false,false,false,0]
[null,"２月",2,{"$f":"C34+1","v":3},4,5,{"$f":"F34+1","v":6},{"$f":"G34+1","v":7},8,27,null,null,"名",null,null,null,null,null,null,null,null,null,null,"日",27,false,"受入日程表（202",0,0,0,false,false,false,false,false,false,false,0]
[null,null,{"$f":"C34+7","v":9},10,11,12,13,14,15,28,null,null,"名",null,null,null,null,null,null,null,null,null,null,"日",28,false,"受入日程表（202",0,0,0,false,false,false,false,false,false,false,0]
[null,null,16,17,18,19,20,21,22,29,null,null,"名",null,null,null,null,null,null,null,null,null,null,"日",29,false,"受入日程表（202",0,0,0,false,false,false,false,false,false,false,0]
[null,null,23,24,25,26,27,"2/28","3/1",30,null,null,"名",null,null,null,null,null,null,null,null,null,null,"日",30,false,"受入日程表（202",0,0,0,false,false,false,false,false,false,false,0]
[null,"３月",2,{"$f":"C38+1","v":3},4,5,{"$f":"F38+1","v":6},{"$f":"G38+1","v":7},{"$f":"H38+1","v":8},31,null,null,"名",null,null,null,null,null,null,null,null,null,null,"日",31,false,"受入日程表（202",0,0,0,false,false,false,false,false,false,false,0]
[null,null,{"$f":"C38+7","v":9},10,11,12,13,14,15,32,null,null,"名",null,null,null,null,null,null,null,null,null,null,"日",32,false,"受入日程表（202",0,0,0,false,false,false,false,false,false,false,0]
[null,"は土日・祝日・振替休日です。",null,null,null,null,null,null,null,{"$f":"SUM(L8:L39)","v":0},null,null,"名",null,null,"体験日数は５日か７日のいずれかになります。"]
[]
["※この日程表はデータとして処理しますので、記入事項以外のメモ等は記入しないでください。"]
["※年度末のみの受け入れはご遠慮ください。"]

{"sheet":"記入方法","index":1,"n_rows":30,"n_cols":6,"rows_kept":30,"cut":false,"hidden":false,"merged":[]}
[]
["（1）施設名欄に施設名をご記入ください"]
[]
[]
[]
[]
[]
[]
[]
[]
["（2）受入れ可能日程をご記入ください"]
[null,"①","受入れ可能週（週番号）"]
[null,null,"受入れ可能日数が5または7日の週のみチェックしてください"]
[null,null,"※4日しか受入れ出来ない週はチェックしないでください"]
[null,"②","受入れ可能人数"]
[null,null,"受入れ可能人数を半角数字で記入してください"]
[null,null,"※男性だけ女性だけを受入れる場合は男女欄に記入してください"]
[null,null,"例）受入れ可能人数の総数が10人で女性だけ10人の場合は"]
[null,null,null,"受入れ可能人数","男","女"]
[null,null,null,10,null,10]
[null,null,"のように記入してください"]
[null,"③","受入れ可能な曜日"]
[null,null,"受入れ可能日数が5日の場合は"]
[null,null,"月～日の内、5か所チェックをしてください"]
[null,null,"受入れ可能日数が7日の場合は"]
[null,null,"全ての曜日をチェック頂いても構いませんし"]
[null,null,"1つも曜日をチェック頂かなくても構いません（7日=全曜日のため）"]
[null,null,"中途半端に受入れ可能な曜日を選択頂いても無効になりますのでご注意ください!!"]
[null,"④","受入れ可能日数"]
[null,null,"①の受入れ可能週にチェックを入れて頂いた場合は5または7を記入してください"]